bitfinex-derivatives/quotes_ETHF0:USTF0_20240905
["timestamp","ask_amount","ask_price","bid_price","bid_amount"]
[1725565897356,0.4239,2359.4,2359.3,0.00634894]
[1725565897760,4.6623,2359.4,2359.3,0.00634894]
[1725565898258,4.2384,2359.4,2359.3,0.00634894]
[1725565898466,4.106,2359.8,2359.3,0.00634894]
[1725565898767,0.42387,2359.6,2359.3,0.00634894]
[1725565899257,0.8982,2359.8,2359.3,0.00634894]
[1725565899258,1.32203,2359.8,2359.4,0.42389]
[1725565899559,1.95411,2360.0,2359.3,0.00634894]
[1725565899560,0.8946,2360.0,2359.3,0.00634894]
[1725565900165,0.42381,2359.9,2359.5,0.42387]
[1725565900352,1.3184,2360.0,2359.6,0.42386]
[1725565900559,0.42381,2359.9,2359.5,0.42387]
[1725565900752,0.8946,2360.0,2359.3,0.00634894]
[1725565900957,0.42387,2359.6,2359.3,0.00634894]
[1725565901364,5.69143274,2359.9,2359.3,0.00634894]
[1725565901365,0.42385,2359.7,2359.3,0.43025894]
[1725565901662,0.8946,2360.0,2359.3,0.00634894]
[1725565901854,1.3184,2360.0,2359.5,0.42386]
[1725565902053,1.3184,2360.0,2359.3,0.00634894]
[1725565902054,0.42385,2359.7,2359.3,0.00634894]
[1725565902259,0.42385,2359.7,2359.3,0.43025894]
[1725565902455,3.2078,2359.8,2359.3,0.00634894]
[1725565902665,0.42387,2359.6,2359.3,0.00634894]
[1725565903168,3.2078,2359.8,2359.3,0.00634894]
[1725565903169,0.42388,2359.5,2359.3,0.00634894]
[1725565903464,0.4239,2359.4,2359.3,0.00634894]
[1725565903666,6.3881,2359.4,2359.3,0.00634894]
[1725565904674,0.42398,2359.0,2358.6,0.42403]
[1725565904864,0.42399,2358.9,2358.5,1.30185]
[1725565905256,0.42399,2358.9,2358.2,0.4241]
[1725565905257,0.42403,2358.7,2358.2,0.4241]
[1725565905463,5.44993,2359.0,2358.1,4.0427]
[1725565905464,0.42396,2359.1,2358.6,0.42403]
[1725565905666,0.42396,2359.1,2358.6,0.00634894]
[1725565905667,0.42397,2359.0,2358.6,0.00634894]
[1725565905967,0.42402,2358.7,2358.6,0.00634894]
[1725565906165,4.66402,2358.7,2358.6,0.00634894]
[1725565906368,12.46582,2358.7,2358.6,0.00634894]
[1725565906769,21.93813243,2358.7,2357.7,0.4242]
[1725565906967,0.4241,2358.3,2357.8,0.42418]
[1725565907363,4.0503,2358.6,2357.8,0.42418]
[1725565907573,4.0503,2358.6,2357.7,0.42419]
[1725565907574,0.42412,2358.2,2357.7,0.42419]
[1725565907869,0.42412,2358.2,2357.7,0.43053894]
[1725565908267,0.4241,2358.3,2357.8,0.42418]
[1725565908467,0.42411,2358.2,2357.7,0.43053894]
[1725565909063,0.42413,2358.1,2357.7,0.00634894]
[1725565909578,0.42418,2357.8,2357.7,0.00634894]
[1725565910071,1.7759,2358.0,2357.7,0.00634894]
[1725565910463,0.42417,2357.9,2357.7,0.00634894]
[1725565910771,0.42418,2357.8,2357.7,0.00634894]
[1725565911265,10.66578,2357.8,2357.7,0.00634894]
[1725565911865,4.9837,2358.0,2357.7,0.00634894]
[1725565912169,0.42418,2357.8,2357.7,0.00634894]
[1725565912668,4.66578,2357.8,2357.7,0.00634894]
[1725565913566,0.42418,2357.9,2357.7,0.00634894]
[1725565913771,4.39,2358.1,2357.7,0.00634894]
[1725565913772,0.42412,2358.2,2357.9,0.42416]
[1725565913970,0.42412,2358.2,2357.7,0.00634894]
[1725565914162,0.42413,2358.1,2357.8,0.42417]
[1725565914572,3.63191,2358.3,2357.7,3.21414894]
[1725565914872,1.7248,2358.6,2358.3,0.42408]
[1725565914873,0.8823,2358.6,2358.3,0.42408]
[1725565915080,0.8823,2358.6,2358.0,3.2078]
[1725565915268,0.42405,2358.6,2358.2,0.4241]
[1725565915463,0.8634,2358.7,2358.4,0.42407]
[1725565915672,4.39,2358.9,2358.1,0.8385]
[1725565915673,5.44997,2358.9,2358.1,0.8385]
[1725565915875,1.06001,2358.8,2358.1,0.8385]
[1725565916174,0.42403,2358.7,2358.3,0.42409]
[1725565916367,5.2549,2358.9,2358.3,0.42409]
[1725565916368,0.42404,2358.6,2358.3,0.42409]
[1725565916573,5.2549,2358.9,2358.1,1.26262]
[1725565916771,4.26781,2358.8,2358.2,0.4241]
[1725565916977,0.42409,2358.3,2358.1,0.8385]
[1725565917167,0.42409,2358.3,2358.1,4.0463]
[1725565917574,0.42409,2358.3,2358.0,0.42414]
[1725565917774,0.42409,2358.3,2357.7,0.00634894]
[1725565917775,1.06015,2358.5,2357.8,1.26357]
[1725565917966,0.42413,2358.1,2357.8,1.26357]
[1725565918471,1.06022,2358.4,2357.8,0.8394]
[1725565918666,8.96412382,2358.5,2357.8,1.26358]
[1725565918973,0.42413,2358.1,2357.8,1.26357]
[1725565919279,0.42412,2358.2,2357.9,0.42416]
[1725565919467,3.2078,2358.5,2357.8,1.26357]
[1725565919468,0.42413,2358.1,2357.8,1.26357]
[1725565919673,0.42415,2358.0,2357.8,0.8394]
[1725565919871,1.06023,2358.4,2357.7,0.00634894]
[1725565919872,1.06033,2358.1,2357.7,0.00634894]
[1725565920179,0.42418,2357.8,2357.7,0.00634894]
[1725565920576,0.42418,2357.8,2357.7,3.21414894]
[1725565920877,0.42418,2357.8,2357.7,0.00634894]
[1725565921078,4.66578,2357.8,2357.7,0.00634894]
[1725565921265,4.66578,2357.8,2357.1,7.3538]
[1725565921266,20.61050201,2357.8,2357.1,4.146]
[1725565921572,0.42425,2357.5,2357.0,0.8336]
[1725565921768,0.42428,2357.3,2357.0,0.8336]
[1725565921968,0.42431,2357.1,2357.0,0.8336]
[1725565922171,5.2345,2357.5,2356.7,0.8553]
[1725565922378,0.00636254,2357.3,2356.9,3.21207795]
[1725565922578,0.00636254,2357.3,2357.2,0.42429]
[1725565922875,0.00636254,2357.3,2357.2,9.63209]
[1725565923084,3.40503735,2358.4,2357.2,9.63209]
[1725565923085,1.96803809,2358.4,2357.2,13.4502]
[1725565923269,3.21693238,2358.7,2358.3,3.2078]
[1725565923270,1.06453809,2358.7,2358.3,3.2078]
[1725565923575,0.42392,2359.3,2358.6,3.2078]
[1725565923779,0.42392,2359.3,2358.5,4.39]
[1725565923973,4.0523,2359.6,2359.0,0.42396]
[1725565923974,0.42389,2359.5,2359.0,0.42396]
[1725565924176,0.00636254,2359.1,2359.0,0.42396]
[1725565924377,0.00636254,2359.1,2359.0,4.66316]
[1725565924780,0.00636254,2359.1,2359.0,4.2392]
[1725565924980,0.00636254,2359.1,2359.0,4.66317]
[1725565925376,0.00636254,2359.1,2359.0,10.66317]
[1725565925683,0.00636254,2359.1,2359.0,4.66317]
[1725565927376,0.00636254,2359.1,2359.0,4.2392]
[1725565927584,0.00636254,2359.1,2358.8,0.8733]
[1725565927777,0.00636254,2359.1,2358.9,0.42397]
[1725565928078,0.00636254,2359.1,2358.8,0.8733]
[1725565928383,0.00636254,2359.1,2358.9,0.42398]
[1725565928988,0.00636254,2359.1,2358.9,0.42397]
[1725565929381,0.00636254,2359.1,2358.7,0.00636254]
[1725565929584,0.424,2358.8,2358.7,0.00636254]
[1725565930081,0.424,2358.9,2358.7,0.00636254]
[1725565930282,0.00636254,2359.1,2358.8,4.2392]
[1725565930477,0.00636254,2359.1,2359.0,0.42397]
[1725565930676,0.00636254,2359.1,2358.9,5.1262]
[1725565930886,0.00636254,2359.1,2358.9,0.887]
[1725565932385,0.00636254,2359.1,2358.9,1.31098]
[1725565932581,0.00636254,2359.1,2359.0,0.42397]
[1725565933279,0.00636254,2359.1,2358.9,1.31097]
[1725565933683,0.00636254,2359.1,2358.9,0.887]
[1725565934191,0.00636254,2359.1,2359.0,0.42397]
[1725565935090,0.00636254,2359.1,2359.0,4.66317]
[1725565935281,1.06453809,2359.8,2359.0,10.2392]
[1725565935591,0.8879,2360.2,2359.5,0.42387]
[1725565935592,1.06453809,2360.2,2359.5,0.42387]
[1725565935889,1.48826809,2360.4,2359.9,0.4238]
[1725565936093,0.42373,2360.4,2359.9,0.4238]
[1725565936292,0.42373,2360.3,2359.9,0.43016254]
[1725565936895,0.42373,2360.3,2359.9,0.00636254]
[1725565937090,0.00636254,2360.4,2359.9,0.00636254]
[1725565937091,0.42377,2360.1,2359.9,0.00636254]
[1725565937296,3.2078,2360.3,2359.9,0.00636254]
[1725565937498,0.00636254,2360.4,2359.9,0.00636254]
[1725565937686,0.43008254,2360.4,2359.9,0.43016254]
[1725565937893,0.42374,2360.3,2359.9,0.43016254]
[1725565938094,0.42375,2360.2,2359.9,0.00636254]
[1725565938287,0.42377,2360.1,2359.9,0.00636254]
[1725565938593,0.00636254,2360.4,2359.9,0.00636254]
[1725565938594,0.42379,2360.0,2359.9,0.00636254]
[1725565938783,0.42378,2360.1,2359.9,0.00636254]
[1725565939490,0.42379,2360.0,2359.9,0.00636254]
[1725565939702,0.42378,2360.1,2359.9,0.00636254]
[1725565939983,0.42375,2360.3,2359.9,0.43016254]
[1725565940191,0.42373,2360.3,2359.9,0.43016254]
[1725565940393,0.42373,2360.3,2360.0,0.42378]
[1725565940585,0.43008254,2360.4,2360.0,0.42379]
[1725565940787,0.43008254,2360.4,2360.2,0.42374]
[1725565940788,0.00636254,2360.4,2360.2,0.42374]
[1725565941092,0.43008254,2360.4,2360.0,0.42377]
[1725565941294,0.43008254,2360.4,2359.9,0.00636254]
[1725565941295,0.00636254,2360.4,2359.9,0.00636254]
[1725565941595,0.00636254,2360.4,2360.1,0.42376]
[1725565941894,0.00636254,2360.4,2359.9,3.21416254]
[1725565941895,0.00636254,2360.4,2360.2,0.42375]
[1725565942092,0.00636254,2360.4,2360.3,0.42373]
[1725565942598,0.00636254,2360.4,2360.2,0.42374]
[1725565942798,0.00636254,2360.4,2360.3,0.42373]
[1725565942990,0.00636254,2360.4,2359.9,3.21416254]
[1725565943192,0.00636254,2360.4,2359.9,0.00636254]
[1725565943396,0.42375,2360.3,2359.9,0.43016254]
[1725565943787,0.42375,2360.2,2359.9,0.43016254]
[1725565944287,0.42375,2360.2,2359.9,0.00636254]
[1725565944487,3.2078,2360.2,2359.9,0.00636254]
[1725565944687,1.05948,2360.0,2359.1,7.3538]
[1725565944893,4.26737,2359.8,2359.2,0.42392]
[1725565945094,0.42387,2359.6,2359.1,3.2078]
[1725565945291,0.42383,2359.8,2359.5,0.42388]
[1725565945593,5.94056,2360.1,2359.1,4.26768]
[1725565945594,1.85986,2360.1,2359.1,4.26768]
[1725565945788,0.42383,2359.8,2359.4,0.43025254]
[1725565946185,3.2078,2359.8,2359.4,0.00636254]
[1725565946389,0.42387,2359.6,2359.4,0.00636254]
[1725565946990,5.07273809,2360.1,2359.4,0.00636254]
[1725565947295,0.42384,2359.8,2359.4,0.43025254]
[1725565947488,0.42385,2359.7,2359.4,0.00636254]
[1725565948184,1.0595,2360.0,2359.4,0.00636254]
[1725565948185,0.42386,2359.6,2359.4,0.00636254]
[1725565948496,5.07273809,2360.1,2359.4,0.00636254]
[1725565948497,0.42385,2359.7,2359.4,0.00636254]
[1725565949191,4.53680911,2360.0,2359.6,0.42384]
[1725565949192,0.42379,2360.0,2359.6,0.42384]
[1725565949495,5.07273809,2360.1,2359.6,0.42385]
[1725565949496,4.0082,2360.1,2359.6,0.42385]
[1725565949691,4.0082,2360.1,2359.5,0.42387]
[1725565950198,4.0082,2360.1,2359.4,0.43024254]
[1725565950199,0.42383,2359.8,2359.4,0.43024254]
[1725565950496,0.42381,2359.9,2359.4,0.00636254]
[1725565950686,4.66580279,2360.0,2359.4,0.43024254]
[1725565950687,0.42382,2359.8,2359.4,0.43024254]
[1725565950887,5.06766,2360.1,2359.5,0.42387]
[1725565951088,0.42382,2359.9,2359.5,0.42387]
[1725565951392,0.42387,2359.6,2359.4,0.00636254]
[1725565951701,1.05952,2359.9,2359.4,0.00636254]
[1725565952088,0.42386,2359.6,2359.4,0.00636254]
[1725565952592,5.33183809,2360.0,2359.4,0.00636254]
[1725565952801,0.42385,2359.7,2359.4,0.43025254]
[1725565953000,4.2673,2360.0,2359.4,0.00636254]
[1725565953001,4.45570758,2359.9,2359.4,0.00636254]
[1725565953195,0.00636254,2360.4,2359.7,3.2078]
[1725565953495,0.00636254,2360.4,2359.8,1.7109]
[1725565953698,0.42373,2360.3,2359.9,0.4238]
[1725565954098,0.43008254,2360.4,2359.8,1.7109]
[1725565954302,0.00636254,2360.4,2359.8,1.7109]
[1725565954599,0.43009254,2360.4,2359.9,0.42381]
[1725565954798,0.00636254,2360.4,2359.8,1.7109]
[1725565955002,0.42374,2360.3,2359.9,0.42379]
[1725565955197,0.00636254,2360.4,2360.1,3.2078]
[1725565955401,3.2078,2361.4,2360.9,0.42362]
[1725565955607,3.63135,2361.4,2360.8,0.42363]
[1725565955900,0.42361,2361.1,2360.5,4.46259]
[1725565956199,3.2078,2361.4,2360.5,4.46259]
[1725565956200,3.2078,2361.4,2360.8,0.42363]
[1725565956397,3.2078,2361.4,2360.5,4.0389]
[1725565956398,0.4236,2361.1,2360.9,0.00636254]
[1725565956599,0.42361,2361.0,2360.9,0.00636254]
[1725565956900,0.4236,2361.1,2360.9,0.00636254]
[1725565957099,0.42361,2361.0,2360.9,0.00636254]
[1725565957503,0.42369,2360.6,2360.3,3.2078]
[1725565957706,0.8028,2360.9,2360.0,3.2078]
[1725565957907,1.22644,2360.9,2360.4,0.42371]
[1725565958104,0.42365,2360.8,2360.3,0.42372]
[1725565958402,0.8028,2360.9,2360.0,3.2078]
[1725565958599,1.22643,2360.9,2360.4,0.42371]
[1725565958800,0.8028,2360.9,2360.3,3.21416254]
[1725565959001,0.42366,2360.7,2360.3,0.00636254]
[1725565959503,0.8028,2360.9,2360.3,0.00636254]
[1725565959702,7.06062989,2361.3,2360.5,0.4237]
[1725565959703,0.42362,2361.0,2360.5,0.4237]
[1725565960109,0.4236,2361.1,2360.6,0.42368]
[1725565960305,0.42361,2361.0,2360.3,3.21416254]
[1725565960507,0.42364,2360.9,2360.4,0.42371]
[1725565960707,1.05894,2361.2,2360.3,3.63788254]
[1725565960708,3.2078,2361.1,2360.3,3.63788254]
[1725565960903,4.4,2361.0,2360.3,3.21416254]
[1725565961102,4.43064119,2360.8,2360.3,0.00636254]
[1725565961303,7.86204809,2360.9,2360.3,0.00636254]
[1725565961513,0.42365,2360.8,2360.4,0.42371]
[1725565962103,1.6531,2360.9,2360.5,0.42369]
[1725565962104,2.07674,2360.9,2360.5,0.42369]
[1725565962310,0.4236,2361.1,2360.3,0.00636254]
[1725565962512,3.2078,2361.2,2360.5,0.42369]
[1725565962821,0.42362,2361.0,2360.5,0.42369]
[1725565963215,0.42363,2360.9,2360.5,0.42369]
[1725565963416,0.42362,2361.0,2360.6,0.42368]
[1725565963611,4.26677,2361.2,2360.4,3.2078]
[1725565963821,4.44790943,2361.1,2360.3,0.43008254]
[1725565964123,1.05907,2360.9,2360.3,0.00636254]
[1725565964309,0.42367,2360.7,2360.3,0.43008254]
[1725565964711,0.42368,2360.6,2360.3,0.00636254]
[1725565965011,3.2078,2361.0,2360.3,0.00636254]
[1725565965012,0.42371,2360.5,2360.3,0.00636254]
[1725565965215,0.42372,2360.4,2360.3,0.00636254]
[1725565967223,4.0637,2360.7,2360.3,0.00636254]
[1725565967419,5.12289,2360.7,2360.3,0.00636254]
[1725565967619,0.42372,2360.4,2360.3,0.00636254]
[1725565968925,0.42371,2360.5,2360.3,0.00636254]
[1725565969319,0.42372,2360.4,2360.3,0.00636254]
[1725565969515,1.06453809,2360.5,2360.3,0.00636254]
[1725565969516,1.48824809,2360.5,2360.3,0.00636254]
[1725565969924,0.42372,2360.4,2360.3,0.00636254]
[1725565970125,1.06453809,2360.5,2360.3,0.00636254]
[1725565970315,3.43642238,2360.7,2360.6,0.42368]
[1725565970316,1.06453809,2360.7,2360.6,0.42368]
[1725565970519,1.06453809,2360.8,2360.6,0.42368]
[1725565970929,1.06453809,2361.0,2360.8,0.42364]
[1725565971129,1.48814809,2361.0,2360.6,0.42367]
[1725565971429,1.48814809,2361.0,2360.5,0.842]
[1725565971430,1.06453809,2361.0,2360.5,0.842]
[1725565971824,1.06453809,2361.0,2360.7,0.42365]
[1725565972630,1.48815809,2361.0,2360.6,0.42367]
[1725565972930,1.48815809,2361.0,2360.7,0.42366]
[1725565972931,1.06453809,2361.0,2360.7,0.42366]
[1725565973428,1.06453809,2361.0,2360.5,0.842]
[1725565973631,0.42364,2360.9,2360.6,0.42368]
[1725565973826,1.48815809,2361.0,2360.6,0.42368]
[1725565974126,1.48816809,2360.9,2360.6,0.42368]
[1725565974427,1.06453809,2360.9,2360.5,0.842]
[1725565974625,1.48815809,2361.0,2360.5,0.842]
[1725565974821,1.06453809,2361.0,2360.5,0.842]
[1725565975025,4.27233809,2361.1,2360.9,0.42363]
[1725565975625,4.27233809,2361.1,2360.8,0.42364]
[1725565975927,4.69593809,2361.1,2360.7,3.63145]
[1725565976120,1.48814809,2361.0,2360.7,3.2078]
[1725565976532,1.06453809,2361.0,2360.7,3.63146]
[1725565976730,1.06453809,2361.0,2360.8,0.42363]
[1725565977027,4.80313735,2361.1,2360.7,3.2078]
[1725565977028,4.27233809,2361.1,2360.7,3.2078]
[1725565977423,4.69592809,2361.1,2360.7,3.2078]
[1725565977626,4.27233809,2361.1,2360.7,3.2078]
[1725565977926,4.27233809,2361.1,2361.0,0.42361]
[1725565978126,1.06453809,2361.2,2361.1,0.42359]
[1725565979926,1.06453809,2361.2,2360.7,4.26695]
[1725565979927,0.42362,2361.0,2360.7,3.63145]
[1725565980127,0.42362,2361.0,2360.7,0.42365]
[1725565980329,1.48817809,2360.9,2360.6,0.42367]
[1725565980629,1.59533735,2361.0,2360.7,3.2078]
[1725565980630,1.06453809,2361.0,2360.7,3.2078]
[1725565980934,1.06453809,2361.1,2360.9,0.42361]
[1725565981133,1.06453809,2361.1,2360.7,3.2078]
[1725565981134,1.06453809,2361.0,2360.7,0.42366]
[1725565981329,1.48815809,2361.0,2360.7,0.42366]
[1725565981531,1.06453809,2360.9,2360.7,0.42366]
[1725565981731,1.48816809,2360.9,2360.6,0.42367]
[1725565981942,0.42368,2360.6,2360.4,3.2078]
[1725565982131,1.50311545,2360.7,2360.4,3.6315]
[1725565982332,1.07945545,2360.6,2360.4,3.6315]
[1725565982536,1.50311545,2360.7,2360.4,3.6315]
[1725565983036,1.07945545,2360.7,2360.4,3.2078]
[1725565983237,1.07945545,2360.7,2360.6,0.42368]
[1725565983430,1.07945545,2360.8,2360.6,0.42368]
[1725565983630,1.07945545,2360.8,2360.7,0.42366]
[1725565983832,1.07945545,2360.9,2360.7,0.42366]
[1725565984039,1.07945545,2360.8,2360.7,0.42366]
[1725565984340,2.01898735,2360.8,2360.6,0.42368]
[1725565984552,1.07999465,2360.8,2360.5,0.8134]
[1725565984839,1.07999465,2360.7,2360.5,1.23709]
[1725565985042,1.07999465,2360.7,2360.6,0.42368]
[1725565985235,1.07999465,2360.8,2360.6,4.65968]
[1725565985435,1.08005985,2360.8,2360.4,3.2078]
[1725565985640,0.4237,2360.5,2360.4,3.2078]
[1725565985937,1.50374985,2360.6,2360.4,3.2078]
[1725565986140,1.08005985,2360.5,2360.3,0.00636254]
[1725565986343,1.0799315,2360.5,2360.3,0.43009254]
[1725565986637,1.07999398,2360.5,2360.3,0.00636254]
[1725565987645,1.07999398,2360.4,2360.3,0.00636254]
[1725565988137,1.07999398,2360.5,2360.4,0.42372]
[1725565988339,1.07999398,2360.7,2360.6,0.42368]
[1725565988739,1.07999398,2360.8,2360.7,0.42366]
[1725565989051,1.07999398,2360.9,2360.8,0.42364]
[1725565989237,1.07999398,2361.0,2360.9,0.42363]
[1725565989735,1.07999398,2361.0,2360.9,4.65883]
[1725565989932,1.07999398,2361.1,2360.9,4.65883]
[1725565990129,1.07999398,2361.0,2360.9,0.42362]
[1725565990328,1.07999398,2361.0,2360.7,0.8628]
[1725565990535,1.59533735,2361.1,2360.7,0.8628]
[1725565990536,1.07999398,2360.8,2360.7,0.8628]
[1725565991131,1.59533735,2360.8,2360.3,4.40636254]
[1725565991435,1.0799369,2360.6,2360.4,0.42371]
[1725565991633,1.0799369,2360.7,2360.5,0.4237]
[1725565991829,1.0799369,2360.7,2360.4,3.2078]
[1725565991830,1.0799369,2360.7,2360.4,3.6315]
[1725565992029,1.0799369,2360.7,2360.5,0.42369]
[1725565992235,1.0799369,2360.8,2360.6,4.236]
[1725565992435,1.0799369,2360.8,2360.5,0.42369]
[1725565992436,1.0799369,2360.7,2360.5,0.42369]
[1725565992646,1.0799369,2360.8,2360.5,0.42369]
[1725565992942,1.0799369,2360.7,2360.4,3.2078]
[1725565993136,1.0799369,2360.9,2360.6,4.4]
[1725565993637,1.0799369,2360.7,2360.4,3.2078]
[1725565994042,1.0799369,2360.9,2360.5,4.236]
[1725565994342,1.0799369,2360.8,2360.4,3.2078]
[1725565994543,1.0799369,2360.8,2360.7,0.42366]
[1725565994734,1.0799369,2360.9,2360.4,3.2078]
[1725565995135,1.0799369,2360.9,2360.8,0.42364]
[1725565995540,1.0799369,2360.9,2360.8,4.65964]
[1725565995931,1.59533735,2361.0,2360.9,0.42363]
[1725565995932,1.0799369,2361.0,2360.9,0.42363]
[1725565996134,1.0799369,2361.0,2360.9,4.65963]
[1725565996340,1.59533735,2361.0,2360.9,4.65963]
[1725565996643,1.59533735,2361.0,2360.7,7.6078]
[1725565996644,0.42362,2361.0,2360.7,7.6078]
[1725565996946,1.62240092,2360.8,2360.5,0.42369]
[1725565997245,1.08156521,2360.7,2360.4,0.8651]
[1725565997440,1.62240092,2360.5,2360.4,1.28882]
[1725565997738,1.0819912,2360.5,2360.4,1.28882]
[1725565998546,1.62240092,2360.5,2360.4,1.28882]
[1725565999343,1.62240092,2360.5,2360.4,15.92562]
[1725565999546,1.08338106,2360.5,2360.4,5.68881]
[1725565999747,1.62240092,2360.5,2360.4,9.92561]
[1725566000052,0.4237,2360.5,2360.3,0.00636254]
[1725566000349,2.1666614,2360.4,2360.3,0.00636254]
[1725566000936,2.1666614,2360.4,2360.3,4.66689254]
[1725566001138,2.64937207,2360.5,2360.3,0.00636254]
[1725566001139,2.1666614,2360.5,2360.3,0.00636254]
[1725566001436,3.07308207,2360.5,2360.3,0.00636254]
[1725566001944,2.64937207,2360.5,2360.3,0.43009254]
[1725566002139,2.16704912,2360.4,2360.3,0.43009254]
[1725566003342,2.16704912,2360.4,2360.3,4.66689254]
[1725566003539,2.16704912,2360.5,2360.3,4.66689254]
[1725566003738,2.16715293,2360.5,2360.4,0.42372]
[1725566004743,2.16715293,2360.5,2360.3,0.00636254]
[1725566005046,2.16715293,2360.4,2360.3,0.43009254]
[1725566005244,2.16715293,2360.5,2360.4,0.42372]
[1725566005651,2.16715293,2360.5,2360.3,0.00636254]
[1725566005847,2.59087293,2360.4,2360.3,0.00636254]
[1725566006048,4.13239207,2360.4,2360.3,0.00636254]
[1725566006251,11.07841731,2360.4,2359.1,8.546]
[1725566006449,11.07841731,2360.4,2359.1,0.42394]
[1725566006450,1.08330337,2359.3,2359.1,0.42394]
[1725566006640,1.08330337,2359.3,2359.1,4.66234]
[1725566006641,1.08330337,2359.2,2359.1,4.66234]
[1725566006845,1.08330337,2359.2,2359.1,0.42394]
[1725566007244,1.08330337,2359.2,2359.1,4.66314]
[1725566007543,1.08330337,2359.3,2359.2,0.42393]
[1725566007740,1.08966591,2359.4,2359.3,0.42391]
[1725566008142,1.08892553,2359.4,2359.3,4.66231]
[1725566008347,0.00636254,2359.4,2359.3,4.66231]
[1725566008651,0.00636254,2359.4,2359.3,4.2384]
[1725566008850,1.08892553,2359.4,2359.3,4.2384]
[1725566009147,0.00636254,2359.4,2359.1,0.42395]
[1725566009349,1.08202138,2359.3,2359.1,0.42395]
[1725566009954,1.08838392,2359.4,2359.1,0.42395]
[1725566010740,1.08838392,2359.4,2358.9,0.00427795]
[1725566010741,1.08202138,2359.3,2358.9,0.00427795]
[1725566010941,1.08202138,2359.2,2358.9,0.42824795]
[1725566011145,1.08202138,2359.2,2359.0,0.42397]
[1725566011357,1.08202138,2359.3,2359.0,0.42397]
[1725566011743,1.08838392,2359.4,2359.0,3.2078]
[1725566011952,0.00636254,2359.4,2359.2,0.42392]
[1725566012144,0.00636254,2359.4,2359.0,7.6078]
[1725566012145,0.00636254,2359.4,2359.3,0.42391]
[1725566012652,0.00636254,2359.4,2359.3,4.66231]
[1725566013450,0.00636254,2359.4,2359.3,7.87011]
[1725566013851,0.00636254,2359.4,2359.3,4.66231]
[1725566014951,0.00636254,2359.4,2359.1,2.4866]
[1725566015159,0.00636254,2359.4,2359.3,0.42391]
[1725566015459,0.00636254,2359.4,2358.9,1.06422795]
[1725566015460,0.43027254,2359.4,2358.9,0.42824795]
[1725566015650,1.51229392,2359.4,2359.0,0.42396]
[1725566015952,0.00636254,2359.4,2359.0,4.4]
[1725566016152,0.00636254,2359.4,2359.3,0.42391]
[1725566016346,0.00636254,2359.4,2359.0,4.4]
[1725566016544,0.43026254,2359.4,2359.0,0.42396]
[1725566017243,0.42391,2359.3,2358.9,0.42824795]
[1725566017749,0.42392,2359.3,2358.9,0.42824795]
[1725566018055,0.43027254,2359.4,2359.0,0.42397]
[1725566018660,0.42392,2359.3,2358.9,0.42824795]
[1725566018859,0.42392,2359.3,2359.0,0.42397]
[1725566019059,0.43027254,2359.4,2359.0,0.42397]
[1725566019355,0.00636254,2359.4,2359.1,0.42395]
[1725566020157,0.00636254,2359.4,2359.3,0.42391]
[1725566020552,0.00636254,2359.4,2359.2,2.08372]
[1725566020760,0.00636254,2359.4,2359.3,0.42391]
[1725566022565,1.08202138,2359.9,2359.8,0.42382]
[1725566022872,1.08202138,2359.9,2359.5,3.2078]
[1725566023169,1.62303207,2360.0,2359.5,3.2078]
[1725566023170,1.08202138,2360.0,2359.5,3.2078]
[1725566023354,1.08202138,2360.0,2359.8,0.42382]
[1725566023760,4.29618392,2360.1,2359.8,0.42381]
[1725566023961,3.63793254,2360.1,2359.8,0.42381]
[1725566024157,0.00636254,2360.1,2359.5,4.26749]
[1725566024366,0.00636254,2360.1,2360.0,0.42379]
[1725566024759,1.08838392,2360.1,2359.9,0.42379]
[1725566024961,0.00636254,2360.1,2359.9,0.42379]
[1725566025161,0.00636254,2360.1,2359.8,3.63161]
[1725566025368,1.08838392,2360.1,2359.8,3.63161]
[1725566025558,0.43013254,2360.1,2359.8,3.63162]
[1725566025764,1.51215392,2360.1,2359.8,0.42382]
[1725566026169,0.00636254,2360.1,2359.9,0.4238]
[1725566026364,0.00636254,2360.1,2359.8,0.42381]
[1725566026665,1.08838392,2360.1,2359.8,0.42381]
[1725566027063,1.08202138,2360.0,2359.4,3.2078]
[1725566027259,0.42386,2359.6,2359.3,4.82391]
[1725566027464,2.14154138,2359.9,2359.3,0.42391]
[1725566027465,1.08202138,2359.8,2359.3,0.42391]
[1725566027669,0.42387,2359.6,2359.3,0.42391]
[1725566027871,0.42385,2359.7,2359.4,0.42389]
[1725566028372,1.50585138,2359.8,2359.5,0.42388]
[1725566028570,1.50585138,2359.8,2359.2,1.6598]
[1725566028571,1.50583138,2359.9,2359.2,2.71963]
[1725566028766,1.50583138,2359.9,2359.5,0.42387]
[1725566028962,1.50583138,2359.9,2359.6,0.42386]
[1725566029163,1.50583138,2359.9,2359.8,0.42382]
[1725566029164,1.08202138,2359.9,2359.8,0.42382]
[1725566029365,1.62303207,2360.0,2359.9,0.4238]
[1725566029366,1.08202138,2360.0,2359.9,0.4238]
[1725566029566,1.08838392,2360.1,2359.9,0.4238]
[1725566029766,1.08838392,2360.1,2359.9,0.42379]
[1725566029767,0.00636254,2360.1,2359.9,0.42379]
[1725566030974,0.00636254,2360.1,2360.0,8.92867]
[1725566031171,3.13188844,2360.9,2360.0,8.92867]
[1725566031172,2.70505345,2360.8,2360.6,0.42368]
[1725566031469,2.70505345,2360.8,2360.4,4.82371]
[1725566031470,1.08202138,2360.7,2360.4,4.82371]
[1725566031670,1.50569138,2360.7,2360.3,0.42373]
[1725566031878,1.08202138,2360.6,2360.1,4.4]
[1725566032070,1.08202138,2360.7,2360.3,0.42373]
[1725566032275,1.08202138,2360.7,2360.3,0.43009254]
[1725566032276,1.08202138,2360.6,2360.3,0.43009254]
[1725566032480,1.08838392,2360.7,2360.3,0.43009254]
[1725566032870,1.08838392,2360.7,2360.5,0.42368]
[1725566033072,0.00636254,2360.7,2360.4,6.56801]
[1725566033366,1.08838392,2360.7,2360.4,1.7443]
[1725566033872,1.08838392,2360.7,2360.4,2.16801]
[1725566034071,1.08838392,2360.7,2360.4,1.7443]
[1725566034268,1.08838392,2360.7,2360.3,0.43009254]
[1725566034469,0.42371,2360.5,2360.3,0.00636254]